Cogmind - Beta 11 X2 --- EXPLORER MODE // 2021.02.12 @ 14:43:51 // Winter2019/RPGLIKE Player: jfk Result: Destroyed by MAIN.C with Heavy Quantum Rifle Performance ------------- Evolutions (9) 4500 Regions Visited (28) 5600 Robots Destroyed (239) 1195 Value Destroyed (17116) 17116 Prototype IDs (21) 420 Alien Tech Used (0) 0 Bonus (17279) 17279 TOTAL SCORE: 46110 Bonus ------- High Alert Combat Kills 1046 Follower Combat Kills 5042 Entered Garrisons 1800 Used RIF Installer 4500 Destroyed MAIN.C Guards 500 Met MAIN.C 5000 Friendly Fire -609 Cogmind --------- Core Integrity 0/2500 Matter 30/500 Energy 550/550 System Corruption 18% Temperature Cool (9) Movement Hovering (58) Location -1/Command Parts ------- > --- POWER (4) -------- Micro Fission Core Light Quantum Reactor Light Quantum Reactor > --- PROPULSION (4) --- Combat Antigrav System Combat Antigrav System Experimental Gyrokinetic Inverter Combat Linear Gravjet > --- UTILITY (11) ----- Improved Cooling System Advanced Transmission Jammer Layered Light Armor Plating Experimental Thermal Defense Suite Advanced Hacking Suite Makeshift System Shield Relay Coupler [NC] (68) Relay Coupler [Grunt] (13) Relay Coupler [Brawler] (84) Relay Coupler [Sentry] (22) Relay Coupler [Sentry] (66) > --- WEAPON (4) ------- Enhanced Quantum Rifle Multirail Force Lance > --- INVENTORY (5) ---- Combat Antigrav System Advanced ECM Suite Advanced Remote Datajack Peak State ------------ > --- POWER ------------ Micro Fission Core Light Quantum Reactor Light Quantum Reactor Light Quantum Reactor > --- PROPULSION ------- Combat Antigrav System Combat Antigrav System Experimental Gyrokinetic Inverter Combat Linear Gravjet > --- UTILITY ---------- Improved Cooling System Advanced Transmission Jammer Layered Light Armor Plating Experimental Thermal Defense Suite Advanced Hacking Suite Makeshift System Shield Relay Coupler [NC] Relay Coupler [Grunt] Relay Coupler [Brawler] Relay Coupler [Sentry] Relay Coupler [Sentry] > --- WEAPON ----------- Enhanced Quantum Rifle Multirail Multirail Advanced Remote Datajack > --- INVENTORY -------- Combat Antigrav System Advanced ECM Suite Force Lance [Rating: 162] Favorites ----------- Power Fission Core Engine Light Angular Momentum Engine Power Core Fission Core Reactor Light Quantum Reactor Propulsion Combat Gravmag System Leg Aluminum Leg Hover Unit Combat Gravmag System Utility Relay Coupler [NC] Device Improved Cooling System Processor Advanced Visual Processing Unit Hackware Relay Coupler [NC] Protection Light Armor Plating Weapon Variable Charge Gun Energy Gun Variable Charge Gun Energy Cannon Ion Cannon Ballistic Gun Multirail Ballistic Cannon Enhanced Gauss Cannon Special Weapon Remote Datajack Piercing Weapon Makeshift Spear Special Melee Weapon Improved Datajack Build | -11 -10 -10 -9 -8 -8 -8 -8 -7 -7 -6 -6 -5 -5 -5 -5 -4 -4 -4 -4 -4 -3 -3 -2 -2 -1 -1 -1 -1 ------- Run | Scr Mat Min Mat Mat Gar Mat Gar Fac Gar Fac Gar Fac Upp Upp War Pro Fac Gar Fac Gar Res Gar Res Gar Acc Gar Acc Com Slots Evolved 19 | 7 . . 1 3 . . 1 1 . 2 1 . . . . . . 1 . . . . . 1 . . 1 . Power 3 | 1 . . . . . . . . . 1 . . . . . . . . . . . . . . . . 1 . Propulsion 3 | 1 . . 1 . . . . 1 . . . . . . . . . . . . . . . . . . . . Utility 10 | 3 . . . 3 . . 1 . . . 1 . . . . . . 1 . . . . . 1 . . . . Weapon 3 | 2 . . . . . . . . . 1 . . . . . . . . . . . . . . . . . . Parts Attached 143 | 10 . 2 7 12 1 7 2 9 7 11 6 9 . . . 4 8 4 1 2 2 4 . 4 . 6 10 15 Power 24 | 2 . . 1 1 . 3 . 2 1 2 . . . . . . 1 . . . . 1 . . . 1 4 5 Engine 8 | 2 . . 1 1 . 1 . 1 1 1 . . . . . . . . . . . . . . . . . . Core 9 | . . . . . . 2 . 1 . 1 . . . . . . 1 . . . . . . . . . 2 2 Reactor 7 | . . . . . . . . . . . . . . . . . . . . . . 1 . . . 1 2 3 Propulsion 28 | 2 . . 3 1 . . . 3 2 3 . 5 . . . 1 3 . . . . . . . . . 4 1 Treads . | . . . . . . . . . . . . . . . . . . . . . . . . . . . . . Leg 2 | 2 . . . . . . . . . . . . . . . . . . . . . . . . . . . . Wheel . | . . . . . . . . . . . . . . . . . . . . . . . . . . . . . Hover 26 | . . . 3 1 . . . 3 2 3 . 5 . . . 1 3 . . . . . . . . . 4 1 Flight . | . . . . . . . . . . . . . . . . . . . . . . . . . . . . . Utility 49 | 4 . . . 3 1 1 2 2 1 4 6 1 . . . 3 2 3 1 2 2 3 . 2 . 3 1 2 Device 14 | 1 . . . 1 1 1 . 2 . 2 2 . . . . . 2 . . . 2 . . . . . . . Storage . | . . . . . . . . . . . . . . . . . . . . . . . . . . . . . Processor 3 | 1 . . . 1 . . . . 1 . . . . . . . . . . . . . . . . . . . Hackware 27 | . . . . 1 . . 2 . . 1 4 1 . . . 3 . 3 1 2 . 3 . 2 . 3 1 . Protection 5 | 2 . . . . . . . . . 1 . . . . . . . . . . . . . . . . . 2 Artifact . | . . . . . . . . . . . . . . . . . . . . . . . . . . . . . Weapon 42 | 2 . 2 3 7 . 3 . 2 3 2 . 3 . . . . 2 1 . . . . . 2 . 2 1 7 Energy Gun 19 | 1 . . 3 4 . 2 . 2 1 . . 1 . . . . 1 1 . . . . . . . . . 3 Energy Cannon 4 | . . . . 1 . . . . 1 . . . . . . . . . . . . . . . . . . 2 Ballistic Gun 7 | 1 . . . . . 1 . . . 1 . 1 . . . . 1 . . . . . . . . 2 . . Ballistic Cannon 4 | . . . . 1 . . . . 1 . . 1 . . . . . . . . . . . 1 . . . . Launcher . | . . . . . . . . . . . . . . . . . . . . . . . . . . . . . Special Weapon 4 | . . 1 . . . . . . . 1 . . . . . . . . . . . . . 1 . . 1 . Impact Weapon . | . . . . . . . . . . . . . . . . . . . . . . . . . . . . . Slashing Weapon . | . . . . . . . . . . . . . . . . . . . . . . . . . . . . . Piercing Weapon 3 | . . 1 . . . . . . . . . . . . . . . . . . . . . . . . . 2 Special Melee Weapon 1 | . . . . 1 . . . . . . . . . . . . . . . . . . . . . . . . Unidentified Prototypes 14 | . . . 1 2 . 1 . 2 . 1 . 2 . . . . 2 . . . 1 . . . . 1 1 . Parts Lost 11 | . . 1 . . 1 . . 4 1 . 1 . . . . . . . . . . . . . . . . 3 Power 1 | . . . . . . . . . . . . . . . . . . . . . . . . . . . . 1 Propulsion 2 | . . . . . . . . 1 1 . . . . . . . . . . . . . . . . . . . Utility 3 | . . 1 . . 1 . . . . . . . . . . . . . . . . . . . . . . 1 Weapon 5 | . . . . . . . . 3 . . 1 . . . . . . . . . . . . . . . . 1 Highest Loss Streak 1 | . . 1 . . 1 . . 1 1 . 1 . . . . . . . . . . . . . . . . 1 Average Slot Usage (%) 92 | . 90 82 83 88 77 72 80 84 79 93 90 90 95 95 95 94 97 99 100 100 99 100 100 99 100 98 98 96 Engine 3 | . 18 18 17 15 13 1 . . 1 5 5 5 5 5 5 5 5 4 4 4 4 1 . . . . . . Core 6 | . . . . . . 11 12 11 9 5 5 5 5 5 5 5 9 9 9 9 9 9 9 9 9 6 5 5 Reactor 2 | . . . . . . . . . . . . . . . . . . . . . . 2 4 4 4 5 8 8 Hover 17 | . . . 8 23 20 20 18 17 16 21 20 19 20 20 20 20 20 19 19 19 19 19 19 18 18 18 17 17 Device 15 | . 9 9 8 7 13 13 12 20 17 19 15 15 15 15 15 15 15 14 14 14 14 19 19 18 18 18 17 13 Hackware 24 | . . . . 5 6 6 17 17 17 19 25 29 30 30 30 29 30 31 33 33 32 28 28 30 31 31 30 30 Protection 1 | . 18 18 17 9 3 . . . . 1 . . . . . . . . . . . . . . . . . 2 Energy Gun 4 | . 9 1 5 8 6 5 6 4 5 5 2 4 5 5 5 5 2 3 4 4 4 4 4 4 4 4 4 1 Ballistic Gun 4 | . 9 1 . . . . . . . 4 5 5 5 5 5 5 4 4 4 4 4 4 4 4 4 7 8 7 Ballistic Cannon 2 | . . . . 4 6 6 6 5 5 . . . 5 5 5 5 5 4 4 4 4 4 4 4 4 . . . Special Weapon 3 | . . 9 6 . . . . . . 3 5 5 5 5 5 5 5 4 4 4 4 4 4 3 4 4 3 3 Naked Turns . | . . . . . . . . . . . . . . . . . . . . . . . . . . . . . Heaviest Build 90 | 15 15 16 23 23 22 25 25 28 37 48 43 45 45 45 45 45 56 56 56 56 61 64 64 68 68 69 83 90 Greatest Support 93 | 20 20 20 36 37 37 37 37 44 51 56 56 66 66 66 66 66 66 64 64 64 64 64 64 74 74 74 92 93 Greatest Overweight (x) 1 | . . . 1 . . . . . . 1 . . . . . . . . . . . . . 1 . . . . Average Overweight (x) . | . . . . . . . . . . . . . . . . . . . . . . . . . . . . . Largest Inventory Capacity 5 | 2 2 2 4 4 4 4 4 5 5 5 5 5 5 5 5 5 5 5 5 5 5 5 5 5 5 5 5 5 Average Capacity 4 | 2 2 2 3 4 4 4 4 4 5 5 5 5 5 5 5 5 5 5 5 5 5 5 5 5 5 5 5 5 Most Carried 5 | 2 2 2 4 4 4 2 4 5 5 5 5 5 3 3 3 4 5 5 5 5 5 5 5 5 5 5 5 4 Average Carried 3 | 1 1 1 2 2 3 . 1 4 4 4 4 3 3 3 3 3 3 2 4 4 5 4 5 4 5 4 2 2 Final Capacity 5 | 2 2 2 4 4 4 4 4 5 5 5 5 5 5 5 5 5 5 5 5 5 5 5 5 5 5 5 5 5 Final Carried 5 | 1 2 2 2 3 3 1 4 5 5 4 4 3 3 3 3 3 4 5 4 5 5 5 5 5 5 3 1 3 Class Distribution -------------------- 35% | Botlord-Scout 26% | Bothacker-Scout 17% | Hacker-Mutant 6% | Botlord-Mutant 4% | Bothacker-Ninja 3% | Hacker-Scout 3% | Botlord-Tank Dominant Class ---------------- Hacker-Mutant | -10/Materials Hacker-Mutant | -10/Mines Hacker-Mutant | -9/Materials Hacker-Mutant | -8/Materials Hacker-Mutant | -8/Garrison Hacker-Mutant | -8/Materials Hacker-Mutant | -8/Garrison Bothacker-Ninja | -7/Factory Hacker-Scout | -7/Garrison Bothacker-Scout | -6/Factory Bothacker-Scout | -6/Garrison Bothacker-Scout | -5/Factory Bothacker-Scout | -5/Upper Caves Bothacker-Scout | -5/Upper Caves Bothacker-Scout | -5/Warlord Bothacker-Scout | -4/Proximity Caves Bothacker-Scout | -4/Factory Bothacker-Scout | -4/Garrison Botlord-Scout | -4/Factory Botlord-Scout | -4/Garrison Botlord-Scout | -3/Research Botlord-Scout | -3/Garrison Botlord-Scout | -2/Research Botlord-Scout | -2/Garrison Botlord-Scout | -1/Access Botlord-Scout | -1/Garrison Botlord-Scout | -1/Access Botlord-Mutant | -1/Command Resources | -11 -10 -10 -9 -8 -8 -8 -8 -7 -7 -6 -6 -5 -5 -5 -5 -4 -4 -4 -4 -4 -3 -3 -2 -2 -1 -1 -1 -1 ----------- Run | Scr Mat Min Mat Mat Gar Mat Gar Fac Gar Fac Gar Fac Upp Upp War Pro Fac Gar Fac Gar Res Gar Res Gar Acc Gar Acc Com Matter Collected 7530 | 82 256 20 70 260 183 339 467 343 141 99 414 279 20 . . 457 . 452 318 287 174 293 . 160 . 772 676 968 Remotely . | . . . . . . . . . . . . . . . . . . . . . . . . . . . . . Salvage Created 7770 | . 180 . 218 581 310 432 477 447 82 . 234 402 . . . 522 17 439 224 243 197 452 . 33 . 866 815 599 Parts 455 | . 9 3 13 32 28 37 28 24 8 . 12 51 . 2 . 22 7 20 9 9 9 7 . 10 . 37 45 33 Haulers Intercepted 4 | . . . 1 1 . 2 . . . . . . . . . . . . . . . . . . . . . . Recyclers Shooed 6 | . 1 . . 1 . 1 . . . . . 2 . . . . . . . . 1 . . . . . . . Parts Field Recycled . | . . . . . . . . . . . . . . . . . . . . . . . . . . . . . Retrieved Matter . | . . . . . . . . . . . . . . . . . . . . . . . . . . . . . Parts Self-Destructed . | . . . . . . . . . . . . . . . . . . . . . . . . . . . . . Prevented . | . . . . . . . . . . . . . . . . . . . . . . . . . . . . . Kills | -11 -10 -10 -9 -8 -8 -8 -8 -7 -7 -6 -6 -5 -5 -5 -5 -4 -4 -4 -4 -4 -3 -3 -2 -2 -1 -1 -1 -1 ------- Run | Scr Mat Min Mat Mat Gar Mat Gar Fac Gar Fac Gar Fac Upp Upp War Pro Fac Gar Fac Gar Res Gar Res Gar Acc Gar Acc Com Combat Hostiles Destroyed 214 | . 3 2 6 15 19 18 22 18 10 . 5 17 1 1 . 9 1 7 5 4 3 5 . 5 . 16 11 11 Melee 4 | . . 2 2 . . . . . . . . . . . . . . . . . . . . . . . . . Guns 114 | . 3 . 2 6 9 5 7 4 5 . 4 15 . 1 . 8 . 3 1 1 2 5 . 3 . 12 11 7 Cannons 92 | . . . . 9 10 11 15 14 5 . 1 2 1 . . 1 1 4 4 3 1 . . 2 . 4 . 4 AOE 4 | . . . 2 . . 2 . . . . . . . . . . . . . . . . . . . . . . Classes Destroyed 16 | . 1 1 1 3 . 3 . 2 2 . . . . . . . . . . . . . . . . 1 1 1 Worker 9 | . . . . . . 1 . . . . . . . . . . 3 . . . . . . . . . 2 3 Builder 2 | . . . . . . . . . . . . . . . . . . . . . . . . . . . 2 . Hauler 4 | . . . 1 1 . 2 . . . . . . . . . . . . . . . . . . . . . . Operator 2 | . . . . . . 1 . . . . . . . . . . 1 . . . . . . . . . . . Watcher 7 | . . . . . . 2 . . . . . 1 . . . . . 1 . . 1 . . . . . 1 1 Swarmer 59 | . . 2 . 2 8 6 10 4 2 . . 11 . . . 3 . 2 1 . . . . 3 . 5 . . Grunt 69 | . 3 . 6 7 9 6 11 2 4 . 2 . . . . 3 1 1 3 . . 1 . 2 . 5 2 1 Brawler 2 | . . . . . . . . 2 . . . . . . . . . . . . . . . . . . . . Duelist 3 | . . . . 1 . . . . . . . . . . . . . . . . . 1 . . . 1 . . Protector 1 | . . . . . . . . . 1 . . . . . . . . . . . . . . . . . . . Sentry 27 | . . . . 4 2 6 . 7 . . . 1 1 . . 1 . 1 . 1 . 1 . 1 . . 1 . Demolisher 3 | . . . . . . . . 2 1 . . . . . . . . . . . . . . . . . . . Specialist 1 | . . . . . . . . . . . . . . . . . . . . . . . . . . 1 . . Hunter 27 | . . . . 1 . . 1 1 . . 1 5 . . . 2 . 2 . 3 2 2 . . . 1 2 4 Programmer 18 | . . . . . . . . . 2 . 2 . . . . . . 1 1 . 1 . . . . 3 6 2 Behemoth 1 | . . . . . . . . . . . . . . . . . . . . . . . . . . . . 1 M Guard 1 | . . . . . . . . . . . . . . . . . . . . . . . . . . . . 1 Combat Programmer 2 | . . . . . . . . . . . . . . . . . . . . . . . . . . . . 2 Thug 1 | . . . . . . . . . . . . . . 1 . . . . . . . . . . . . . . Best Kill Streak 15 | . 1 2 4 7 7 10 15 6 4 . 2 4 1 1 . 4 4 2 2 2 2 2 . 3 . 7 4 3 Combat Bots Only 15 | . 1 2 4 7 7 7 15 6 4 . 2 4 1 1 . 4 1 2 2 2 2 2 . 3 . 7 3 2 Max Kills in Single Turn 4 | . 1 1 2 1 1 4 1 1 1 . 1 2 1 1 . 1 4 1 1 1 1 1 . 1 . 2 2 1 Gunslinging 1 | . . . . . . . . . . . . 1 . . . . . . . . . . . . . 1 . . Exploded 2 | . . . 2 . . 2 . . . . . . . . . . . . . . . . . . . . . . Melee 1 | . . 1 1 . . . . . . . . . . . . . . . . . . . . . . . . . Uniques/NPCs Destroyed . | . . . . . . . . . . . . . . . . . . . . . . . . . . . . . Combat | -11 -10 -10 -9 -8 -8 -8 -8 -7 -7 -6 -6 -5 -5 -5 -5 -4 -4 -4 -4 -4 -3 -3 -2 -2 -1 -1 -1 -1 -------- Run | Scr Mat Min Mat Mat Gar Mat Gar Fac Gar Fac Gar Fac Upp Upp War Pro Fac Gar Fac Gar Res Gar Res Gar Acc Gar Acc Com Damage Taken 16521 | . 184 358 56 320 1021 284 703 858 599 . 327 1348 16 77 198 518 . 420 388 333 259 405 . 411 . 1453 867 5118 Core 12628 | . 126 237 38 233 718 222 554 673 483 . 255 1106 12 71 156 434 . 341 318 264 205 319 . 334 . 1151 694 3684 Absorbed by Shields 414 | . . . . . 51 . . . 104 . 55 . . . . . . . . 58 . 60 . . . 86 . . Redirected to Core 10509 | . 118 237 38 175 653 193 441 532 333 . 224 850 12 21 143 281 . 271 237 223 187 288 . 267 . 965 579 3241 Core Remaining (%) 86 | 100 . 54 90 . . . 82 . 83 . 84 . . . . 82 . . . 100 . 86 . 100 . . . . Volleys Fired 806 | . 16 3 6 38 49 42 49 42 45 2 26 46 3 6 . 19 3 35 31 24 14 32 . 22 1 55 79 118 Largest 3 | . 2 1 2 2 2 2 2 2 3 1 3 3 2 3 . 3 3 3 3 3 3 3 . 3 2 3 3 3 Hottest 326 | . 70 100 90 124 105 113 113 113 188 30 170 162 87 162 . 162 162 167 167 167 167 282 . 176 291 326 315 225 Shots Fired 1590 | . 32 3 12 65 98 81 97 79 76 2 42 68 6 10 . 50 7 70 55 61 42 65 . 46 2 113 119 289 Gun 994 | . 32 . 12 40 49 39 48 37 23 . 17 58 3 4 . 31 4 37 24 37 28 40 . 26 1 73 104 227 Cannon 485 | . . . . 25 49 42 49 42 53 . 13 3 3 2 . 18 3 21 17 21 14 17 . 12 1 21 . 59 Launcher . | . . . . . . . . . . . . . . . . . . . . . . . . . . . . . Special 111 | . . 3 . . . . . . . 2 12 7 . 4 . 1 . 12 14 3 . 8 . 8 . 19 15 3 Kinetic 907 | . 16 . . 25 49 42 49 42 45 . 11 42 6 4 . 36 6 41 34 42 28 33 . 24 1 68 60 203 Thermal 562 | . 16 3 . 40 49 39 48 37 30 . 19 19 . 2 . 13 1 17 7 16 14 24 . 14 1 26 44 83 Explosive . | . . . . . . . . . . . . . . . . . . . . . . . . . . . . . Electromagnetic 13 | . . . 12 . . . . . 1 . . . . . . . . . . . . . . . . . . . Robot Hit Streak 101 | . 13 7 17 40 33 64 19 55 101 16 28 17 21 25 . 16 6 20 24 28 13 32 . 46 . 32 28 47 Robot Miss Streak 7 | . 1 . 1 2 6 7 3 3 6 . 1 2 . 1 . 1 1 1 1 1 1 1 . 2 . 5 2 4 Penetration Max 2 | . . . . . . . . . . . . 1 . . . 1 1 1 . . . . . 1 . 2 1 1 Secondary Targets 6 | . . . . . . . . . . . . 1 . . . . . . . . . . . . . 3 2 . Max Gunslinging Chain 1 | . . . . . . . . . . . . 1 . . . . . . . . . . . . . 1 1 . Shots Hit Robots 1360 | . 27 4 15 56 78 72 77 73 62 2 35 55 6 7 . 34 6 52 48 48 36 52 . 36 . 95 79 305 Core Hits 815 | . 7 2 12 48 58 63 71 82 39 . 14 30 3 2 . 17 8 15 11 18 13 18 . 11 . 42 49 182 Critical Hits 37 | . . . . . . . . . . . 1 3 1 . . 2 1 6 1 1 1 3 . . . 1 2 14 Critical Kills 13 | . . . . . . . . . . . 1 3 . . . 1 1 2 . 1 1 . . . . 1 1 1 Critical Parts Destroyed 16 | . . . . . . . . . . . . . 1 . . 1 . 4 1 . . 3 . . . . 1 5 Melee Attacks 60 | . . 3 5 . . 2 1 1 . . . . . . . . . . . . . . . . . . . 48 Impact . | . . . . . . . . . . . . . . . . . . . . . . . . . . . . . Slashing . | . . . . . . . . . . . . . . . . . . . . . . . . . . . . . Piercing 56 | . . 3 5 . . . . . . . . . . . . . . . . . . . . . . . . 48 Sneak Attacks 7 | . . . 1 . . 1 1 1 . . . . . . . . . . . . . . . . . . . 3 Combat Hostiles 1 | . . . . . . . 1 . . . . . . . . . . . . . . . . . . . . . Follow-up Attacks . | . . . . . . . . . . . . . . . . . . . . . . . . . . . . . Damage Inflicted 36271 | 14 351 124 462 1169 1631 2059 1565 1870 1172 . 565 1274 169 60 . 727 673 1113 935 1081 918 1230 . 816 . 2708 2229 11356 Guns 22111 | . 351 . 192 580 720 664 753 648 421 . 416 1209 71 60 . 567 75 528 486 606 528 879 . 470 . 2101 2229 7557 Cannons 10324 | . . . . 589 911 847 812 1222 751 . 149 65 98 . . 160 132 445 449 475 390 351 . 346 . 607 . 1525 Explosions 1266 | . . . 112 . . 548 . . . . . . . . . . 466 140 . . . . . . . . . . Melee 2532 | . . 100 158 . . . . . . . . . . . . . . . . . . . . . . . . 2274 Ramming 14 | 14 . . . . . . . . . . . . . . . . . . . . . . . . . . . . Kinetic 22458 | . 161 . . 589 911 847 812 1222 710 . 201 892 169 60 . 466 207 806 783 863 682 649 . 606 . 1946 1928 6948 Thermal 10387 | . 190 24 112 580 720 664 753 648 462 . 364 382 . . . 261 466 167 152 218 236 581 . 210 . 762 301 2134 Explosive 688 | . . . . . . 548 . . . . . . . . . . . 140 . . . . . . . . . . Electromagnetic 192 | . . . 192 . . . . . . . . . . . . . . . . . . . . . . . . . Impact . | . . . . . . . . . . . . . . . . . . . . . . . . . . . . . Slashing . | . . . . . . . . . . . . . . . . . . . . . . . . . . . . . Piercing 2532 | . . 100 158 . . . . . . . . . . . . . . . . . . . . . . . . 2274 Highest Corruption 18 | . . . 3 1 1 1 1 . 1 . . . . 1 1 1 . . . . . . . . . 5 5 18 Average Corruption 4 | . . . 3 1 1 1 1 . 1 . . . . 1 1 1 . . . . . . . . . 4 5 9 Corruption Purged . | . . . . . . . . . . . . . . . . . . . . . . . . . . . . . Effects 112 | . . . . . 1 1 3 . 1 . . . . . . 3 . . . . . . . . . 25 28 50 Message Errors 34 | . . . . . . . 1 . 1 . . . . . . 2 . . . . . . . . . 8 10 12 Matter Fused 23 | . . . . . . . . . . . . . . . . . . . . . . . . . . 7 8 8 Heat Flow Errors 10 | . . . . . . . . . . . . . . . . . . . . . . . . . . 3 3 4 Energy Discharges 11 | . . . . . . 1 . . . . . . . . . . . . . . . . . . . 1 5 4 Parts Rejected 3 | . . . . . . . . . . . . . . . . . . . . . . . . . . 1 . 2 Data Loss (minor) 11 | . . . . . 1 . 1 . . . . . . . . 1 . . . . . . . . . 3 1 4 Data Loss (major) 5 | . . . . . . . . . . . . . . . . . . . . . . . . . . 1 . 4 Misfires 3 | . . . . . . . . . . . . . . . . . . . . . . . . . . 1 1 1 Alerts 1 | . . . . . . . . . . . . . . . . . . . . . . . . . . . . 1 Misdirections 6 | . . . . . . . . . . . . . . . . . . . . . . . . . . . . 6 Weapon Failures 5 | . . . . . . . 1 . . . . . . . . . . . . . . . . . . . . 4 Overload Shots 45 | . . . . . . . . . . . . . . . . . . . . . . 5 . . 1 8 30 1 Effects 3 | . . . . . . . . . . . . . . . . . . . . . . . . . . . 3 . Energy Bleed 2 | . . . . . . . . . . . . . . . . . . . . . . . . . . . 2 . Short Circuit 1 | . . . . . . . . . . . . . . . . . . . . . . . . . . . 1 . Overflow Damage 295 | . . . . . 3 58 6 . . . . . . . . . 84 49 . . 7 . . 41 . 39 . 8 Projectiles 101 | . . . . . 3 5 6 . . . . . . . . . . . . . 7 . . 41 . 39 . . Explosions 186 | . . . . . . 53 . . . . . . . . . . 84 49 . . . . . . . . . . Melee 8 | . . . . . . . . . . . . . . . . . . . . . . . . . . . . 8 Knockbacks 106 | . . . . 8 27 11 14 8 11 . . . . . . 5 . 4 1 3 1 3 . 2 . 8 . . Impact . | . . . . . . . . . . . . . . . . . . . . . . . . . . . . . Kinetic 98 | . . . . 7 25 11 11 7 11 . . . . . . 4 . 4 1 3 1 3 . 2 . 8 . . Secondary 8 | . . . . 1 2 . 3 1 . . . . . . . 1 . . . . . . . . . . . . Self-Inflicted Damage 100 | . . . . . . . . . . . . . . . . . . 100 . . . . . . . . . . Shots 1 | . . . . . . . . . . . . . . . . . . 1 . . . . . . . . . . Rammed . | . . . . . . . . . . . . . . . . . . . . . . . . . . . . . Targets Rammed 2 | 2 . . . . . . . . . . . . . . . . . . . . . . . . . . . . Kicked 2 | 2 . . . . . . . . . . . . . . . . . . . . . . . . . . . . Crushed . | . . . . . . . . . . . . . . . . . . . . . . . . . . . . . Highest Temperature 402 | . 337 . . 21 256 100 59 . 2 . . . . 6 381 3 238 30 45 36 27 402 . . 4 188 328 171 Average Temperature 68 | . 179 . . 8 141 28 21 . 2 . . . . 6 176 3 90 10 14 11 12 143 . . 3 57 98 81 Received Heat Transfer 3748 | . 174 . 51 198 738 135 279 255 156 . 144 69 . 18 . 33 . 54 72 52 27 51 . . . 153 72 1017 Effects 4 | . 2 . . . . . . . . . . . . . . . . . . . . 2 . . . . . . Shutdowns 1 | . . . . . . . . . . . . . . . . . . . . . . 1 . . . . . . Interference 2 | . 2 . . . . . . . . . . . . . . . . . . . . . . . . . . . Damage (minor) 1 | . . . . . . . . . . . . . . . . . . . . . . 1 . . . . . . Siege Activations . | . . . . . . . . . . . . . . . . . . . . . . . . . . . . . Robots Corrupted . | . . . . . . . . . . . . . . . . . . . . . . . . . . . . . Combat Hostiles . | . . . . . . . . . . . . . . . . . . . . . . . . . . . . . Parts Fried . | . . . . . . . . . . . . . . . . . . . . . . . . . . . . . Impact Corruptions . | . . . . . . . . . . . . . . . . . . . . . . . . . . . . . Robots Melted . | . . . . . . . . . . . . . . . . . . . . . . . . . . . . . Combat Hostiles . | . . . . . . . . . . . . . . . . . . . . . . . . . . . . . Parts Melted 13 | . . . . 2 2 . 1 1 . . 6 . . . . . 1 . . . . . . . . . . . Heat Transferred 15351 | . 555 50 100 1258 1477 1295 1402 1258 811 . 647 629 . . . 444 350 296 259 332 407 822 . 370 . 942 316 1331 Parts Sabotaged . | . . . . . . . . . . . . . . . . . . . . . . . . . . . . . Parts Stolen . | . . . . . . . . . . . . . . . . . . . . . . . . . . . . . Parts Stripped . | . . . . . . . . . . . . . . . . . . . . . . . . . . . . . Power Chain Reactions 1 | . . . 1 . . . . . . . . . . . . . . . . . . . . . . . . . Missiles Intercepted . | . . . . . . . . . . . . . . . . . . . . . . . . . . . . . Alert | -11 -10 -10 -9 -8 -8 -8 -8 -7 -7 -6 -6 -5 -5 -5 -5 -4 -4 -4 -4 -4 -3 -3 -2 -2 -1 -1 -1 -1 ------- Run | Scr Mat Min Mat Mat Gar Mat Gar Fac Gar Fac Gar Fac Upp Upp War Pro Fac Gar Fac Gar Res Gar Res Gar Acc Gar Acc Com Peak Influence 1168 | . 105 83 248 523 1028 1083 1168 625 464 228 462 581 . . . . 238 478 328 290 183 404 170 473 218 360 457 171 Initial 535 | . . 28 22 74 258 367 535 455 119 180 122 180 . . . . . 127 186 81 122 106 170 99 214 136 163 . Average 278 | . 35 46 85 259 562 670 917 419 292 197 333 348 . . . . 139 273 240 215 144 290 170 245 216 246 225 60 Maximum Alert Level 4 | . . . 1 2 3 3 4 2 2 1 2 2 . . . . 1 2 1 1 . 2 . 2 1 1 2 . Low Security (%) 40 | 100 100 100 89 39 . . . . 32 46 19 5 . . . . 80 23 35 37 100 29 100 45 . 31 47 100 Level 1 36 | . . . 10 46 20 15 . 41 48 53 26 54 . . . . 19 67 64 62 . 48 . 31 100 68 43 . Level 2 17 | . . . . 14 49 38 27 58 18 . 53 40 . . . . . 9 . . . 21 . 23 . . 8 . Level 3 3 | . . . . . 29 46 41 . . . . . . . . . . . . . . . . . . . . . Level 4 1 | . . . . . . . 31 . . . . . . . . . . . . . . . . . . . . . Level 5 . | . . . . . . . . . . . . . . . . . . . . . . . . . . . . . High Security . | . . . . . . . . . . . . . . . . . . . . . . . . . . . . . Max Security . | . . . . . . . . . . . . . . . . . . . . . . . . . . . . . Squads Dispatched 34 | . . . 3 3 . 2 . 7 . . . 7 . . . . 2 . 3 . . . . . . . 5 2 Investigation 5 | . . . . . . . . 1 . . . 3 . . . . 1 . . . . . . . . . . . Extermination 6 | . . . . . . . . 1 . . . 1 . . . . . . . . . . . . . . 2 2 Reinforcement 14 | . . . 3 1 . 1 . 2 . . . 2 . . . . 1 . 2 . . . . . . . 2 . Assault 1 | . . . . . . . . . . . . 1 . . . . . . . . . . . . . . . . Garrison 8 | . . . . 2 . 1 . 3 . . . . . . . . . . 1 . . . . . . . 1 . Intercept . | . . . . . . . . . . . . . . . . . . . . . . . . . . . . . Construction Impeded 5 | . . . . 1 . . . . . . . 1 . . . . . . 1 . . . . . . . 2 . Haulers Reinforced 1 | . . . . . . . . . . . . . . . . . . . 1 . . . . . . . . . Stealth | -11 -10 -10 -9 -8 -8 -8 -8 -7 -7 -6 -6 -5 -5 -5 -5 -4 -4 -4 -4 -4 -3 -3 -2 -2 -1 -1 -1 -1 --------- Run | Scr Mat Min Mat Mat Gar Mat Gar Fac Gar Fac Gar Fac Upp Upp War Pro Fac Gar Fac Gar Res Gar Res Gar Acc Gar Acc Com Distress Signals 17 | . . . . 2 . 2 . . . 1 . 1 . . . . 1 . 4 . 1 . . . . . 5 . Communications Jammed 204 | . . . . . . 8 . 12 14 . . 5 . . . . 1 13 15 14 8 . . . . . 113 1 Distress Signals 190 | . . . . . . 8 . 10 14 . . 5 . . . . 1 13 13 14 6 . . . . . 105 1 Times Spotted 445 | . 5 2 11 17 30 26 24 25 13 3 21 40 1 4 1 11 7 24 27 13 8 19 . 21 . 33 40 19 Peak Tracking Total 12 | . 4 2 4 5 10 6 7 5 5 2 6 5 1 3 1 6 5 6 6 5 2 4 . 5 . 12 5 5 Tactical Retreats 16 | . 1 . . . 3 3 . . 3 . 1 . . . . 1 1 . 1 . . . . 1 . . . 1 Traps | -11 -10 -10 -9 -8 -8 -8 -8 -7 -7 -6 -6 -5 -5 -5 -5 -4 -4 -4 -4 -4 -3 -3 -2 -2 -1 -1 -1 -1 ------- Run | Scr Mat Min Mat Mat Gar Mat Gar Fac Gar Fac Gar Fac Upp Upp War Pro Fac Gar Fac Gar Res Gar Res Gar Acc Gar Acc Com Traps Triggered 51 | . . . . 2 8 1 4 5 4 . 3 1 . . 3 . . 2 . 6 . 1 . 4 . 6 1 . Indirectly . | . . . . . . . . . . . . . . . . . . . . . . . . . . . . . Trap Hack Attempts 4 | . . . . . 4 . . . . . . . . . . . . . . . . . . . . . . . Triggered . | . . . . . . . . . . . . . . . . . . . . . . . . . . . . . Disarmed 1 | . . . . . 1 . . . . . . . . . . . . . . . . . . . . . . . Reprogrammed 1 | . . . . . 1 . . . . . . . . . . . . . . . . . . . . . . . Reused . | . . . . . . . . . . . . . . . . . . . . . . . . . . . . . Traps Extracted . | . . . . . . . . . . . . . . . . . . . . . . . . . . . . . Installed . | . . . . . . . . . . . . . . . . . . . . . . . . . . . . . Triggered . | . . . . . . . . . . . . . . . . . . . . . . . . . . . . . Machines | -11 -10 -10 -9 -8 -8 -8 -8 -7 -7 -6 -6 -5 -5 -5 -5 -4 -4 -4 -4 -4 -3 -3 -2 -2 -1 -1 -1 -1 ---------- Run | Scr Mat Min Mat Mat Gar Mat Gar Fac Gar Fac Gar Fac Upp Upp War Pro Fac Gar Fac Gar Res Gar Res Gar Acc Gar Acc Com Machines Disabled 68 | . . . . . 3 3 3 . 2 . 3 17 . . . . 8 7 6 4 . 3 . 3 . 3 3 . Max in Single Turn 4 | . . . . . 1 3 1 . 1 . 1 1 . . . . 4 2 1 1 . 1 . 1 . 1 1 . Garrison Relay 26 | . . . . . 3 . 3 . 2 . 3 . . . . . . 4 . 3 . 3 . 2 . 3 . . Phase Generator 1 | . . . . . . . . . . . . . . . . . . 1 . . . . . . . . . . Machines Sabotaged . | . . . . . . . . . . . . . . . . . . . . . . . . . . . . . Garrisons Compromised . | . . . . . . . . . . . . . . . . . . . . . . . . . . . . . Overloaded Fab Kills . | . . . . . . . . . . . . . . . . . . . . . . . . . . . . . Fab Network Shutdowns . | . . . . . . . . . . . . . . . . . . . . . . . . . . . . . Hacking | -11 -10 -10 -9 -8 -8 -8 -8 -7 -7 -6 -6 -5 -5 -5 -5 -4 -4 -4 -4 -4 -3 -3 -2 -2 -1 -1 -1 -1 --------- Run | Scr Mat Min Mat Mat Gar Mat Gar Fac Gar Fac Gar Fac Upp Upp War Pro Fac Gar Fac Gar Res Gar Res Gar Acc Gar Acc Com Machines Accessed 29 | . 1 . . 2 . 2 . 5 . 2 . 4 . . . . 4 . 3 . 3 . 1 . 1 . . 1 Terminals 16 | . 1 . . 1 . 1 . 3 . . . 3 . . . . 3 . 1 . 2 . . . . . . 1 Fabricators 4 | . . . . . . . . 1 . 1 . 1 . . . . . . 1 . . . . . . . . . Repair Stations . | . . . . . . . . . . . . . . . . . . . . . . . . . . . . . Recycling Units . | . . . . . . . . . . . . . . . . . . . . . . . . . . . . . Scanalyzers . | . . . . . . . . . . . . . . . . . . . . . . . . . . . . . Garrison Access 9 | . . . . 1 . 1 . 1 . 1 . . . . . . 1 . 1 . 1 . 1 . 1 . . . Total Hacks 57 | . 3 . . 3 . 3 . 8 . 4 . 12 . . . . 9 . 4 . 6 . 2 . 2 . . 1 Successful 34 | . 1 . . 3 . 3 . 4 . 4 . 3 . . . . 6 . 3 . 2 . 2 . 2 . . 1 Failed 23 | . 2 . . . . . . 4 . . . 9 . . . . 3 . 1 . 4 . . . . . . . Catastrophic 8 | . . . . . . . . 1 . . . 4 . . . . 1 . 1 . 1 . . . . . . . Database Lockouts . | . . . . . . . . . . . . . . . . . . . . . . . . . . . . . Manual 27 | . . . . 1 . 1 . 4 . . . 10 . . . . 6 . 1 . 4 . . . . . . . Terminals 35 | . 3 . . 1 . 1 . 6 . . . 11 . . . . 7 . 1 . 4 . . . . . . 1 Fabricators 5 | . . . . . . . . 1 . 2 . 1 . . . . . . 1 . . . . . . . . . Repair Stations . | . . . . . . . . . . . . . . . . . . . . . . . . . . . . . Recycling Units . | . . . . . . . . . . . . . . . . . . . . . . . . . . . . . Scanalyzers . | . . . . . . . . . . . . . . . . . . . . . . . . . . . . . Garrison Access 17 | . . . . 2 . 2 . 1 . 2 . . . . . . 2 . 2 . 2 . 2 . 2 . . . Terminal Hacks 9 | . 1 . . 1 . 1 . 2 . . . 1 . . . . 2 . . . . . . . . . . 1 Record 3 | . . . . . . . . 2 . . . 1 . . . . . . . . . . . . . . . . Open Door 1 | . . . . . . . . . . . . . . . . . . . . . . . . . . . . 1 Branch Access Points 1 | . . . . 1 . . . . . . . . . . . . . . . . . . . . . . . . Garrison Index 2 | . . . . . . 1 . . . . . . . . . . 1 . . . . . . . . . . . Hauler Manifests 1 | . . . . . . . . . . . . . . . . . 1 . . . . . . . . . . . Registered Components 1 | . 1 . . . . . . . . . . . . . . . . . . . . . . . . . . . Fabricator Hacks 5 | . . . . . . . . 1 . 2 . 1 . . . . . . 1 . . . . . . . . . Network Status 4 | . . . . . . . . 1 . 1 . 1 . . . . . . 1 . . . . . . . . . Build 1 | . . . . . . . . . . 1 . . . . . . . . . . . . . . . . . . Repair Station Hacks . | . . . . . . . . . . . . . . . . . . . . . . . . . . . . . Recycling Unit Hacks . | . . . . . . . . . . . . . . . . . . . . . . . . . . . . . Scanalyzer . | . . . . . . . . . . . . . . . . . . . . . . . . . . . . . Garrison Access Hacks 17 | . . . . 2 . 2 . 1 . 2 . . . . . . 2 . 2 . 2 . 2 . 2 . . . Unlock Access 9 | . . . . 1 . 1 . 1 . 1 . . . . . . 1 . 1 . 1 . 1 . 1 . . . Coupler Status 8 | . . . . 1 . 1 . . . 1 . . . . . . 1 . 1 . 1 . 1 . 1 . . . Unauthorized Hacks 3 | . . . . . . . . . . . . 1 . . . . 2 . . . . . . . . . . . Terminals 3 | . . . . . . . . . . . . 1 . . . . 2 . . . . . . . . . . . Assimilate 3 | . . . . . . . . . . . . 1 . . . . 2 . . . . . . . . . . . Fabricators . | . . . . . . . . . . . . . . . . . . . . . . . . . . . . . Repair Stations . | . . . . . . . . . . . . . . . . . . . . . . . . . . . . . Recycling Units . | . . . . . . . . . . . . . . . . . . . . . . . . . . . . . Scanalyzers . | . . . . . . . . . . . . . . . . . . . . . . . . . . . . . Garrison Access . | . . . . . . . . . . . . . . . . . . . . . . . . . . . . . Data Cores Recovered . | . . . . . . . . . . . . . . . . . . . . . . . . . . . . . Used . | . . . . . . . . . . . . . . . . . . . . . . . . . . . . . Hacking Detections 19 | . 1 . . . . 1 . 4 . 2 . 4 . . . . 2 . 1 . 3 . . . 1 . . . Full Trace Events 6 | . 1 . . . . . . 1 . . . 3 . . . . 1 . . . . . . . . . . . Feedback Events . | . . . . . . . . . . . . . . . . . . . . . . . . . . . . . Feedback Blocked . | . . . . . . . . . . . . . . . . . . . . . . . . . . . . . Robot Schematics Acquired . | . . . . . . . . . . . . . . . . . . . . . . . . . . . . . Robots Built 1 | . . . . . . . . . . 1 . . . . . . . . . . . . . . . . . . Matter 153 | . . . . . . . . . . 153 . . . . . . . . . . . . . . . . . . Time 40 | . . . . . . . . . . 40 . . . . . . . . . . . . . . . . . . Total Robot Build Rating 1 | . . . . . . . . . . 1 . . . . . . . . . . . . . . . . . . Part Schematics Acquired . | . . . . . . . . . . . . . . . . . . . . . . . . . . . . . Parts Built . | . . . . . . . . . . . . . . . . . . . . . . . . . . . . . Matter . | . . . . . . . . . . . . . . . . . . . . . . . . . . . . . Time . | . . . . . . . . . . . . . . . . . . . . . . . . . . . . . Total Part Build Rating . | . . . . . . . . . . . . . . . . . . . . . . . . . . . . . Parts Repaired . | . . . . . . . . . . . . . . . . . . . . . . . . . . . . . Time . | . . . . . . . . . . . . . . . . . . . . . . . . . . . . . Parts Recycled . | . . . . . . . . . . . . . . . . . . . . . . . . . . . . . Recycled Matter . | . . . . . . . . . . . . . . . . . . . . . . . . . . . . . Retrieved Matter . | . . . . . . . . . . . . . . . . . . . . . . . . . . . . . Retrieved Components . | . . . . . . . . . . . . . . . . . . . . . . . . . . . . . Parts Scanalyzed . | . . . . . . . . . . . . . . . . . . . . . . . . . . . . . Part Schematics Acquired . | . . . . . . . . . . . . . . . . . . . . . . . . . . . . . Parts Damaged . | . . . . . . . . . . . . . . . . . . . . . . . . . . . . . Bothacking | -11 -10 -10 -9 -8 -8 -8 -8 -7 -7 -6 -6 -5 -5 -5 -5 -4 -4 -4 -4 -4 -3 -3 -2 -2 -1 -1 -1 -1 ------------ Run | Scr Mat Min Mat Mat Gar Mat Gar Fac Gar Fac Gar Fac Upp Upp War Pro Fac Gar Fac Gar Res Gar Res Gar Acc Gar Acc Com Used RIF Installer 9 | . . . . . 1 . 1 . 1 . 1 . . . . . . 1 . 1 . 1 . 1 . 1 . . Hotswap 1 | . . . . . . . . . . . . . . . . . . . . . . 1 . . . . . . Threat Obfuscator 2 | . . . . . . . 1 . . . . . . . . . . 1 . . . . . . . . . . Signal Jammer 1 | . . . . . . . . . . . . . . . . . . . . . . . . 1 . . . . Watcher Feeds 1 | . . . . . . . . . . . . . . . . . . . . . . . . . . 1 . . Structural Interface 1 | . . . . . . . . . 1 . . . . . . . . . . . . . . . . . . . Autoassimilate 2 | . . . . . . . . . . . 1 . . . . . . . . 1 . . . . . . . . Robots Hacked 110 | . . . . . . 2 . 1 . 1 10 10 . 4 . 4 1 12 14 3 . 8 . 7 . 16 15 2 Non-combat 10 | . . . . . . 2 . 1 . 1 . 1 . 1 . . . . 1 . . . . . . . 2 1 Combat 100 | . . . . . . . . . . . 10 9 . 3 . 4 1 12 13 3 . 8 . 7 . 16 13 1 Autoassimilated 16 | . . . . . . . . . . . . 3 . . . 3 1 1 1 1 . 1 . . . 4 1 . Robot Hacks Applied 95 | . . . . . . 2 . 1 . 1 10 7 . 4 . 1 . 11 13 2 . 7 . 7 . 12 15 2 parse_system 4 | . . . . . . 1 . . . . . 1 . . . . . . . . . . . . . . 1 1 ignore_repairs 1 | . . . . . . 1 . . . . . . . . . . . . . . . . . . . . . . find_fabricator 1 | . . . . . . . . . . 1 . . . . . . . . . . . . . . . . . . drop_inventory 1 | . . . . . . . . . . . . . . . . . . . . . . . . . . . 1 . scatter_targeting 1 | . . . . . . . . . . . . . . . . . . . . . . . . . . . 1 . overload_power 1 | . . . . . . . . . . . . . . . . 1 . . . . . . . . . . . . disable_weapons 2 | . . . . . . . . . . . . . . . . . . 1 . . . . . . . . 1 . reboot_system 2 | . . . . . . . . . . . 2 . . . . . . . . . . . . . . . . . overwrite_iff 7 | . . . . . . . . . . . . . . . . . . . . . . . . . . 5 2 . streamctrl_high 1 | . . . . . . . . . . . . . . . . . . . 1 . . . . . . . . . formatsys_low 3 | . . . . . . . . 1 . . . 1 . 1 . . . . . . . . . . . . . . formatsys_high 71 | . . . . . . . . . . . 8 5 . 3 . . . 10 12 2 . 7 . 7 . 7 9 1 Relay Couplers Released 44 | . . . . . 5 . 6 . 4 . 6 . . . . . . 6 . 4 . 4 . 4 . 5 . . Machine Destruction 44 | . . . . . 5 . 6 . 4 . 6 . . . . . . 6 . 4 . 4 . 4 . 5 . . Attached 22 | . . . . . . . 2 . . . 4 1 . . . . . 3 1 2 . 3 . 2 . 3 1 . Robots Rewired . | . . . . . . . . . . . . . . . . . . . . . . . . . . . . . Allies Hacked 2 | . . . . . . . . . . . . . . . . . . . . . . . . . . 1 . 1 Hacks Repelled . | . . . . . . . . . . . . . . . . . . . . . . . . . . . . . Allies | -11 -10 -10 -9 -8 -8 -8 -8 -7 -7 -6 -6 -5 -5 -5 -5 -4 -4 -4 -4 -4 -3 -3 -2 -2 -1 -1 -1 -1 -------- Run | Scr Mat Min Mat Mat Gar Mat Gar Fac Gar Fac Gar Fac Upp Upp War Pro Fac Gar Fac Gar Res Gar Res Gar Acc Gar Acc Com Total Allies 105 | . . 2 . . . . . 1 . 1 8 12 . 4 . 3 2 11 14 3 . 8 . 7 . 16 12 1 Largest Group 11 | . . 2 2 1 . . . 1 . 1 7 10 2 5 . 2 1 10 11 7 3 7 7 8 5 8 8 3 Highest-Rated Group 1288 | . . 41 41 31 . . . 11 . 6 227 330 98 175 . 60 47 327 531 334 141 404 404 473 406 744 1288 472 Highest-Rated Ally 222 | . . 31 31 31 . . . 11 . 6 47 49 49 49 . 47 47 58 56 56 47 115 115 147 147 222 222 222 Total Orders 25 | . . . . . . . . . . . 1 3 . 4 . . . 1 2 . . . . . . . 14 . ROAM 8 | . . . . . . . . . . . 1 . . 1 . . . . . . . . . . . . 6 . FOLLOW 9 | . . . . . . . . . . . . . . 1 . . . . . . . . . . . . 8 . AID 6 | . . . . . . . . . . . . 3 . . . . . 1 2 . . . . . . . . . DROP 2 | . . . . . . . . . . . . . . 2 . . . . . . . . . . . . . . Ally Attacks 679 | . . . 3 15 . . . . . . 35 52 . . . 3 1 54 78 45 6 49 . 105 . 74 121 38 Total Damage 30209 | . . . 62 191 . . . . . . 759 2521 . . . 99 500 1299 2748 1205 89 1637 . 3390 . 2367 8850 4492 Kills 156 | . . . 2 2 . . . . . . 5 21 . . . . 4 7 18 8 1 8 . 22 . 9 42 7 Allies Corrupted 3 | . . . . 1 . . . . . . . 1 . . . . . . . . . . . . . . . 1 Allies Melted 1 | . . . . . . . . . . . . . . . . . . . . . . . . . . 1 . . Intel | -11 -10 -10 -9 -8 -8 -8 -8 -7 -7 -6 -6 -5 -5 -5 -5 -4 -4 -4 -4 -4 -3 -3 -2 -2 -1 -1 -1 -1 ------- Run | Scr Mat Min Mat Mat Gar Mat Gar Fac Gar Fac Gar Fac Upp Upp War Pro Fac Gar Fac Gar Res Gar Res Gar Acc Gar Acc Com Robot Analysis Total . | . . . . . . . . . . . . . . . . . . . . . . . . . . . . . Derelict Logs Recovered 4 | . . 2 . . . . . . . . . . 1 . . 1 . . . . . . . . . . . . Drone Launches . | . . . . . . . . . . . . . . . . . . . . . . . . . . . . . Drone Recoveries . | . . . . . . . . . . . . . . . . . . . . . . . . . . . . . Exploration | -11 -10 -10 -9 -8 -8 -8 -8 -7 -7 -6 -6 -5 -5 -5 -5 -4 -4 -4 -4 -4 -3 -3 -2 -2 -1 -1 -1 -1 ------------- Run | Scr Mat Min Mat Mat Gar Mat Gar Fac Gar Fac Gar Fac Upp Upp War Pro Fac Gar Fac Gar Res Gar Res Gar Acc Gar Acc Com Turns Passed 12643 | 106 159 317 145 399 430 333 399 835 290 276 520 900 315 216 95 436 230 561 464 576 266 401 24 454 49 911 1219 1317 Spaces Moved 10660 | 69 92 198 95 402 394 284 358 923 223 291 534 773 245 170 159 373 301 574 361 644 298 334 16 338 17 726 639 829 Core 12 | 11 . . 1 . . . . . . . . . . . . . . . . . . . . . . . . . Treads . | . . . . . . . . . . . . . . . . . . . . . . . . . . . . . Legs 395 | 58 92 198 47 . . . . . . . . . . . . . . . . . . . . . . . . . Wheels . | . . . . . . . . . . . . . . . . . . . . . . . . . . . . . Hover 10253 | . . . 47 402 394 284 358 923 223 291 534 773 245 170 159 373 301 574 361 644 298 334 16 338 17 726 639 829 Flight . | . . . . . . . . . . . . . . . . . . . . . . . . . . . . . Fastest Speed 45 | 50 120 120 52 52 52 52 52 52 53 53 55 53 60 60 60 55 50 50 50 50 50 50 50 50 50 50 45 58 Average Speed 56 | 108 120 120 86 52 52 52 52 52 58 56 55 53 60 60 60 58 53 50 50 50 50 50 50 65 50 50 59 58 Slowest Speed 128 | 120 120 120 120 52 52 52 52 58 66 128 55 60 60 60 60 60 55 50 50 50 50 50 50 117 50 50 65 63 Overloaded Moves . | . . . . . . . . . . . . . . . . . . . . . . . . . . . . . Propulsion Burnouts . | . . . . . . . . . . . . . . . . . . . . . . . . . . . . . Robots Hopped . | . . . . . . . . . . . . . . . . . . . . . . . . . . . . . Cave-ins Triggered 4 | . . 1 . . . . . . . . . 2 . . . . . . . . . . . . . . 1 . Exploration Rate (%) 38 | 5 28 63 11 35 63 43 61 25 48 11 95 23 55 19 19 53 13 76 11 92 13 75 1 62 1 76 15 19 Regions Visited 28 Branch Regions 6 Pre-discovered Areas 2 | . . 1 . . . . . . . . . . . . . 1 . . . . . . . . . . . . Known Exits Taken 19 | 1 1 1 1 1 . 1 . 1 . 1 . 1 1 1 1 1 1 . 1 . 1 . 1 . 1 . 1 . Unknown Exits Taken . | . . . . . . . . . . . . . . . . . . . . . . . . . . . . . Scrap Searched 6 | . . 1 . . . . . . . . . . 1 1 . 3 . . . . . . . . . . . . Spaces Dug 24 | . . 2 . . . . . . . . . . . . . 2 . . . . . . . . 2 . 7 11 Terrain Destroyed 191 | . . 2 4 . . 16 . . . . 2 1 . 3 . 12 17 83 9 4 6 2 . 3 2 4 7 14 Melee . | . . . . . . . . . . . . . . . . . . . . . . . . . . . . . Projectile 71 | . . 2 . . . . . . . . 2 1 . 3 . 12 . . 9 4 6 2 . 3 2 4 7 14 AOE 120 | . . . 4 . . 16 . . . . . . . . . . 17 83 . . . . . . . . . . Terrain Rammed . | . . . . . . . . . . . . . . . . . . . . . . . . . . . . . Walls Destroyed . | . . . . . . . . . . . . . . . . . . . . . . . . . . . . . Machines Disabled . | . . . . . . . . . . . . . . . . . . . . . . . . . . . . . Actions | -11 -10 -10 -9 -8 -8 -8 -8 -7 -7 -6 -6 -5 -5 -5 -5 -4 -4 -4 -4 -4 -3 -3 -2 -2 -1 -1 -1 -1 --------- Run | Scr Mat Min Mat Mat Gar Mat Gar Fac Gar Fac Gar Fac Upp Upp War Pro Fac Gar Fac Gar Res Gar Res Gar Acc Gar Acc Com Total 15785 | 96 108 266 142 531 520 390 471 1197 309 402 729 1199 406 277 158 550 367 793 601 848 383 517 31 539 54 1193 1380 1328 Wait 3043 | 11 . 52 7 32 . 9 15 165 . 87 126 304 152 83 . 132 37 139 181 85 59 124 15 80 37 266 610 235 Move 10637 | 69 91 197 94 401 392 284 356 923 222 291 533 772 244 169 158 372 301 573 361 642 298 333 16 337 16 725 638 829 Hop . | . . . . . . . . . . . . . . . . . . . . . . . . . . . . . Pick Up 118 | 5 1 2 7 13 5 7 5 1 7 1 6 9 . . . 4 7 5 . 2 . 5 . 2 . 3 9 12 Fast Attach 32 | 6 . . . . 1 . . 8 1 9 1 . . . . . . . . . 1 . . 2 . 3 . . Attach 85 | 4 . 2 6 11 5 5 2 . 6 1 5 7 . . . 3 6 2 . . . 1 . 1 . . 8 10 Detach . | . . . . . . . . . . . . . . . . . . . . . . . . . . . . . Swap 32 | . . . 1 1 . 2 . 2 . 1 . 2 . . . 1 2 2 1 2 1 3 . 1 . 3 2 5 Drop 97 | . . 2 5 11 1 8 . 6 4 10 6 9 . . . 4 6 . . . 2 2 . 2 . 5 7 7 Fire 806 | . 16 3 6 38 49 42 49 42 45 2 26 46 3 6 . 19 3 35 31 24 14 32 . 22 1 55 79 118 Melee 60 | . . 3 5 . . 2 1 1 . . . . . . . . . . . . . . . . . . . 48 Ram . | . . . . . . . . . . . . . . . . . . . . . . . . . . . . . Kick 1 | 1 . . . . . . . . . . . . . . . . . . . . . . . . . . . . Crush . | . . . . . . . . . . . . . . . . . . . . . . . . . . . . . Escape Stasis 307 | . . . . . 34 . 28 8 13 . 13 . . . . . . 11 . 76 . 13 . 53 . 58 . . Rewire 8 | . . . . . . . . . . . . . . . . . . . 1 . . . . 2 . 4 1 . Trap 4 | . . . . . 4 . . . . . . . . . . . . . . . . . . . . . . . Miscellaneous 555 | . . 5 11 24 29 31 15 41 11 . 13 50 7 19 . 15 5 26 26 17 8 4 . 37 . 71 26 64 Route ------- -11/Scrapyard -10/Materials -10/Mines (discovered 2 exits: *Mat x2) -9/Materials -8/Materials (discovered 2 exits: *Fac / Gar) -8/Garrison (discovered 2 exits: *Mat x2) -8/Materials (discovered 2 exits: *Fac / Gar) -8/Garrison (discovered 2 exits: *Fac x2) -7/Factory (discovered 4 exits: *Fac x2 / *Low / Gar) -7/Garrison -6/Factory -6/Garrison (discovered 3 exits: *Fac x3) -5/Factory -5/Upper Caves -5/Upper Caves -5/Warlord -4/Proximity Caves -4/Factory (discovered 2 exits: Res / Gar) -4/Garrison (discovered 2 exits: *Fac x2) -4/Factory -4/Garrison (discovered 3 exits: *Res x3) -3/Research (discovered 2 exits: *Tes / Gar) -3/Garrison (discovered 2 exits: *Res x2) -2/Research -2/Garrison (discovered 2 exits: *Acc x2) -1/Access -1/Garrison (discovered 3 exits: *Acc x3) -1/Access -1/Command History --------- Turn | Location | Event 1 | -11/Scrapyard | Upgraded with Power slot (x1) 1 | -11/Scrapyard | Upgraded with Propulsion slot (x1) 1 | -11/Scrapyard | Upgraded with Utility slot (x3) 1 | -11/Scrapyard | Upgraded with Weapon slot (x2) 8 | -11/Scrapyard | Identified exit to Materials 8 | -11/Scrapyard | Discovered exit to Materials (range 15) 107 | -11/Scrapyard | Entered Materials 242 | -10/Materials | Identified exit to Mines 242 | -10/Materials | Discovered exit to Mines (range 15) 266 | -10/Materials | Entered Mines 286 | -10/Mines | Crushed by falling debris 286 | -10/Mines | Core integrity fell below 50% 303 | -10/Mines | A weapon hastily lodged in a ceiling crevice suddenly fell to the ground 328 | -10/Mines | Build established: Hacker-Mutant 391 | -10/Mines | Identified exit to Materials 391 | -10/Mines | Discovered exit to Materials (range 9) 466 | -10/Mines | Found a hidden stash of uninstalled traps 523 | -10/Mines | Learned Materials terminal intel 529 | -10/Mines | Learned location of Zion (-7) 551 | -10/Mines | Discovered exit to Materials (range 6) 583 | -10/Mines | Entered Materials 583 | -9/Materials | Accompanied by 2 allies 584 | -9/Materials | Loaded intel: 12 terminal locations 585 | -9/Materials | Reached level 2 585 | -9/Materials | Reached level 3 588 | -9/Materials | Led the pair of lost Derelicts to an unsafe place 644 | -9/Materials | Reached level 4 673 | -9/Materials | Upgraded with Propulsion slot (x1) 709 | -9/Materials | Identified exit to Materials 709 | -9/Materials | Discovered exit to Materials (range 6) 728 | -9/Materials | Entered another Materials area 728 | -8/Materials | Accompanied by 1 ally 730 | -8/Materials | Reached level 5 730 | -8/Materials | Reached level 6 775 | -8/Materials | Reached level 7 881 | -8/Materials | Garrison activated, responded to threat 922 | -8/Materials | Upgraded with Utility slot (x2) 989 | -8/Materials | Identified exit to Factory 989 | -8/Materials | Discovered exit to Factory (range 20) 1063 | -8/Materials | Garrison activated, responded to threat 1070 | -8/Materials | Reached level 8 1122 | -8/Materials | Destroyed 7 combat bots 1125 | -8/Materials | Upgraded with Utility slot (x1) 1125 | -8/Materials | Identified exit to Garrison 1127 | -8/Materials | Entered Garrison 1188 | -8/Garrison | Triggered checkpoint 1189 | -8/Garrison | Reached level 9 1217 | -8/Garrison | Garrison Relay disabled 1239 | -8/Garrison | Identified exit to Materials 1239 | -8/Garrison | Discovered exit to Materials (range 13) 1299 | -8/Garrison | Garrison Relay disabled 1324 | -8/Garrison | Triggered checkpoint 1369 | -8/Garrison | Triggered checkpoint 1386 | -8/Garrison | Core integrity fell below 50% 1405 | -8/Garrison | Core integrity fell below 20% 1418 | -8/Garrison | Reached level 10 1455 | -8/Garrison | Destroyed 7 combat bots 1479 | -8/Garrison | Discovered exit to Materials (range 10) 1488 | -8/Garrison | Triggered checkpoint 1528 | -8/Garrison | Garrison Relay disabled 1555 | -8/Garrison | Installed Relay Interface Framework 1555 | -8/Garrison | Reached level 11 1557 | -8/Garrison | Entered Materials 1687 | -8/Materials | Destroyed 7 combat bots 1787 | -8/Materials | Discovered exit to Factory (range 9) 1838 | -8/Materials | Reached level 12 1845 | -8/Materials | Garrison activated, responded to threat 1890 | -8/Materials | Identified exit to Garrison 1890 | -8/Materials | Entered Garrison 1890 | -8/Garrison | Upgraded with Utility slot (x1) 1902 | -8/Garrison | Triggered checkpoint 1903 | -8/Garrison | Garrison Relay disabled 1982 | -8/Garrison | Triggered checkpoint 2010 | -8/Garrison | Triggered checkpoint 2061 | -8/Garrison | Triggered checkpoint 2067 | -8/Garrison | Reached level 13 2094 | -8/Garrison | Destroyed 15 combat bots 2122 | -8/Garrison | Triggered checkpoint 2144 | -8/Garrison | Garrison Relay disabled 2159 | -8/Garrison | Triggered checkpoint 2175 | -8/Garrison | Discovered exit to Factory (range 15) 2240 | -8/Garrison | Discovered exit to Factory (range 14) 2250 | -8/Garrison | Expanded RIF knowledge: Threat Obfuscation 2267 | -8/Garrison | Garrison Relay disabled 2289 | -8/Garrison | Entered Factory 2291 | -7/Factory | Reached level 14 2377 | -7/Factory | Upgraded with Propulsion slot (x1) 2680 | -7/Factory | Build established: Bothacker-Ninja 2845 | -7/Factory | Identified exit to Factory 2845 | -7/Factory | Discovered exit to Factory (range 15) 2888 | -7/Factory | Discovered exit to Factory (range 16) 2992 | -7/Factory | Identified exit to Lower Caves 2992 | -7/Factory | Discovered exit to Lower Caves (range 14) 3045 | -7/Factory | Assembled infested ambush trap array 3070 | -7/Factory | Reached level 15 3124 | -7/Factory | Identified exit to Garrison 3124 | -7/Factory | Entered Garrison 3127 | -7/Garrison | Expanded RIF knowledge: Structural Interface 3140 | -7/Garrison | Triggered checkpoint 3208 | -7/Garrison | Triggered checkpoint 3306 | -7/Garrison | Build established: Hacker-Scout 3313 | -7/Garrison | Garrison Relay disabled 3361 | -7/Garrison | Garrison Relay disabled 3372 | -7/Garrison | Discovered exit to Factory (range 15) 3384 | -7/Garrison | Triggered checkpoint 3414 | -7/Garrison | Entered Factory 3416 | -6/Factory | Reached level 16 3441 | -6/Factory | Upgraded with Power slot (x1) 3441 | -6/Factory | Upgraded with Weapon slot (x1) 3609 | -6/Factory | Fabricated K-01 Serf (x1) 3685 | -6/Factory | Identified exit to Garrison 3690 | -6/Factory | Entered Garrison 3690 | -6/Garrison | Accompanied by 1 ally 3692 | -6/Garrison | Reached level 17 3739 | -6/Garrison | Garrison Relay disabled 3763 | -6/Garrison | Build established: Bothacker-Scout 3790 | -6/Garrison | Triggered checkpoint 3798 | -6/Garrison | Triggered checkpoint 3830 | -6/Garrison | Triggered checkpoint 3893 | -6/Garrison | Identified exit to Factory 3893 | -6/Garrison | Discovered exit to Factory (range 11) 3912 | -6/Garrison | Triggered checkpoint 3930 | -6/Garrison | Garrison Relay disabled 4010 | -6/Garrison | Discovered exit to Factory (range 13) 4107 | -6/Garrison | Discovered exit to Factory (range 14) 4118 | -6/Garrison | Expanded RIF knowledge: Autoassimilate 4118 | -6/Garrison | Reached level 18 4138 | -6/Garrison | Triggered checkpoint 4166 | -6/Garrison | Garrison Relay disabled 4171 | -6/Garrison | Upgraded with Utility slot (x1) 4210 | -6/Garrison | Entered Factory 4212 | -5/Factory | Reached level 19 4371 | -5/Factory | Identified exit to Upper Caves 4371 | -5/Factory | Discovered exit to Upper Caves (range 11) 4502 | -5/Factory | Allied Derelicts emerged from ambush trap array 4510 | -5/Factory | First assault squad dispatched 4568 | -5/Factory | Crushed by falling debris 4618 | -5/Factory | Reached level 20 5007 | -5/Factory | Crushed by falling debris 5110 | -5/Factory | Entered Upper Caves 5110 | -5/Upper Caves | Accompanied by 2 allies 5112 | -5/Upper Caves | Reached level 21 5206 | -5/Upper Caves | Attracted the attention of an 0b10 checkpoint 5365 | -5/Upper Caves | Identified exit to Upper Caves 5365 | -5/Upper Caves | Discovered exit to Upper Caves (range 16) 5403 | -5/Upper Caves | Learned location of 1 exit from Factory 5425 | -5/Upper Caves | Entered another Upper Caves area 5425 | -5/Upper Caves | Accompanied by 2 allies 5590 | -5/Upper Caves | Identified exit to Warlord 5590 | -5/Upper Caves | Discovered exit to Warlord (range 15) 5616 | -5/Upper Caves | Ambushed by wild Derelicts 5641 | -5/Upper Caves | Entered Warlord 5659 | -5/Warlord | Identified exit to Proximity Caves 5659 | -5/Warlord | Discovered exit to Proximity Caves (range 8) 5681 | -5/Warlord | System corruption cleaned by Quarantine Array 5691 | -5/Warlord | RIF detected upon attempting to enter Warlord's base 5691 | -5/Warlord | Attacked by Warlord forces 5697 | -5/Warlord | Spotted LD-VUJ(B) 5697 | -5/Warlord | Spotted U0-RW7(B) 5736 | -5/Warlord | Entered Proximity Caves 5738 | -4/Proximity Caves | Reached level 22 5807 | -4/Proximity Caves | Attracted the attention of an 0b10 checkpoint 5897 | -4/Proximity Caves | Spotted B-86 Titan 6157 | -4/Proximity Caves | Identified exit to Factory 6157 | -4/Proximity Caves | Discovered exit to Factory (range 16) 6172 | -4/Proximity Caves | Entered Factory 6173 | -4/Factory | Identified exit to Research 6174 | -4/Factory | Reached level 23 6398 | -4/Factory | Identified exit to Garrison 6402 | -4/Factory | Entered Garrison 6402 | -4/Garrison | Accompanied by 1 ally 6404 | -4/Garrison | Reached level 24 6405 | -4/Garrison | Expanded RIF knowledge: Threat Obfuscation 6481 | -4/Garrison | Triggered checkpoint 6500 | -4/Garrison | Triggered checkpoint 6529 | -4/Garrison | Triggered checkpoint 6606 | -4/Garrison | Triggered checkpoint 6630 | -4/Garrison | Garrison Relay disabled 6634 | -4/Garrison | Upgraded with Utility slot (x1) 6635 | -4/Garrison | Identified exit to Factory 6635 | -4/Garrison | Discovered exit to Factory (range 15) 6710 | -4/Garrison | Triggered checkpoint 6775 | -4/Garrison | Garrison Relay disabled 6780 | -4/Garrison | Triggered checkpoint 6849 | -4/Garrison | Spotted B-86 Titan 6850 | -4/Garrison | Garrison Relay disabled 6896 | -4/Garrison | Discovered exit to Factory (range 15) 6912 | -4/Garrison | Phase Generator disabled 6919 | -4/Garrison | Garrison Relay disabled 6963 | -4/Garrison | Entered Factory 6963 | -4/Factory | Accompanied by 6 allies 7079 | -4/Factory | Build established: Botlord-Scout 7131 | -4/Factory | Reached level 25 7298 | -4/Factory | Garrison activated, responded to threat 7425 | -4/Factory | Identified exit to Garrison 7427 | -4/Factory | Entered Garrison 7427 | -4/Garrison | Accompanied by 6 allies 7458 | -4/Garrison | Triggered checkpoint 7460 | -4/Garrison | Triggered checkpoint 7477 | -4/Garrison | Triggered checkpoint 7550 | -4/Garrison | Discovered exit to Research (range 16) 7625 | -4/Garrison | Discovered exit to Research (range 13) 7680 | -4/Garrison | Triggered checkpoint 7704 | -4/Garrison | Garrison Relay disabled 7799 | -4/Garrison | Discovered exit to Research (range 16) 7810 | -4/Garrison | Expanded RIF knowledge: Autoassimilate 7822 | -4/Garrison | Triggered checkpoint 7827 | -4/Garrison | Garrison Relay disabled 7870 | -4/Garrison | Triggered checkpoint 7872 | -4/Garrison | Garrison Relay disabled 8003 | -4/Garrison | Entered Research 8003 | -3/Research | Accompanied by 3 allies 8005 | -3/Research | Reached level 26 8100 | -3/Research | Reached level 27 8117 | -3/Research | Identified exit to Testing 8117 | -3/Research | Discovered exit to Testing (range 15) 8259 | -3/Research | Spotted B-86 Titan 8260 | -3/Research | Found Prototype Device 8260 | -3/Research | Identified Exp. Thermal Defense Suite 8269 | -3/Research | Identified exit to Garrison 8269 | -3/Research | Entered Garrison 8355 | -3/Garrison | Garrison Relay disabled 8364 | -3/Garrison | Triggered checkpoint 8401 | -3/Garrison | Spotted B-86 Titan 8404 | -3/Garrison | Assimilated Titan 8a with formatsys_high 8416 | -3/Garrison | Triggered checkpoint 8418 | -3/Garrison | Triggered checkpoint 8462 | -3/Garrison | Triggered checkpoint 8489 | -3/Garrison | Garrison Relay disabled 8506 | -3/Garrison | Identified exit to Research 8506 | -3/Garrison | Discovered exit to Research (range 15) 8516 | -3/Garrison | Expanded RIF knowledge: Hotswap 8583 | -3/Garrison | Garrison Relay disabled 8614 | -3/Garrison | Discovered exit to Research (range 17) 8670 | -3/Garrison | Entered Research 8670 | -2/Research | Accompanied by 7 allies 8672 | -2/Research | Reached level 28 8672 | -2/Research | Reached level 29 8679 | -2/Research | Identified exit to Garrison 8694 | -2/Research | Entered Garrison 8694 | -2/Garrison | Accompanied by 7 allies 8753 | -2/Garrison | Upgraded with Utility slot (x1) 8764 | -2/Garrison | Triggered checkpoint 8782 | -2/Garrison | Garrison Relay disabled 8874 | -2/Garrison | Spotted B-90 Cyclops 8876 | -2/Garrison | Assimilated Cyclops 9a with formatsys_high 8888 | -2/Garrison | Triggered checkpoint 8890 | -2/Garrison | Reached level 30 8890 | -2/Garrison | Triggered checkpoint 8918 | -2/Garrison | Triggered checkpoint 8942 | -2/Garrison | Identified exit to Access 8942 | -2/Garrison | Discovered exit to Access (range 12) 9041 | -2/Garrison | Garrison Relay disabled 9042 | -2/Garrison | Triggered checkpoint 9103 | -2/Garrison | Discovered exit to Access (range 16) 9116 | -2/Garrison | Expanded RIF knowledge: Signal Jamming 9120 | -2/Garrison | Triggered checkpoint 9148 | -2/Garrison | Entered Access 9148 | -1/Access | Accompanied by 5 allies 9150 | -1/Access | Reached level 31 9155 | -1/Access | Identified exit to Garrison 9197 | -1/Access | Entered Garrison 9197 | -1/Garrison | Accompanied by 5 allies 9197 | -1/Garrison | Reached level 32 9274 | -1/Garrison | Spotted B-99 Colossus 9275 | -1/Garrison | Assimilated Colossus 10a with formatsys_high 9276 | -1/Garrison | Triggered checkpoint 9278 | -1/Garrison | Triggered checkpoint 9280 | -1/Garrison | Triggered checkpoint 9327 | -1/Garrison | Core integrity fell below 50% 9373 | -1/Garrison | Destroyed 7 combat bots 9419 | -1/Garrison | Found Prototype Ballistic Gun 9419 | -1/Garrison | Identified Multirail 9422 | -1/Garrison | Found Multirail 9453 | -1/Garrison | Identified exit to Access 9453 | -1/Garrison | Discovered exit to Access (range 13) 9483 | -1/Garrison | Garrison Relay disabled 9559 | -1/Garrison | Discovered exit to Access (range 10) 9585 | -1/Garrison | Garrison Relay disabled 9592 | -1/Garrison | Triggered checkpoint 9598 | -1/Garrison | Reached level 33 9712 | -1/Garrison | Discovered exit to Access (range 11) 9721 | -1/Garrison | Expanded RIF knowledge: Patrol Navigation 9791 | -1/Garrison | Garrison Relay disabled 9813 | -1/Garrison | Spotted B-99 Colossus 9851 | -1/Garrison | Assimilated Colossus 10b with formatsys_high 10108 | -1/Garrison | Entered Access 10108 | -1/Access | Accompanied by 3 allies 10352 | -1/Access | Spotted B-99 Colossus 10356 | -1/Access | Assimilated Colossus 10c with formatsys_high 10531 | -1/Access | Spotted B-99 Colossus 10533 | -1/Access | Assimilated Colossus 10d with formatsys_high 10563 | -1/Access | Identified exit to Command 10563 | -1/Access | Discovered exit to Command (range 16) 10564 | -1/Access | Upgraded with Power slot (x1) 10584 | -1/Access | Spotted B-99 Colossus 10584 | -1/Access | Spotted B-99 Colossus 10592 | -1/Access | Assimilated Colossus 10e with formatsys_high 10594 | -1/Access | Assimilated Colossus 10f with formatsys_high 10640 | -1/Access | Reached level 34 10808 | -1/Access | Crushed by falling debris 11180 | -1/Access | P-80 Master assimilated allied Colossus 10c 11215 | -1/Access | Allies destroyed Colossus 10c 11245 | -1/Access | Garrison activated, responded to threat 11327 | -1/Access | Entered Command 11327 | -1/Command | Accompanied by 2 allies 11329 | -1/Command | Reached level 35 11413 | -1/Command | Found Powered Armor 11628 | -1/Command | Spotted B-99 Colossus 11655 | -1/Command | Destroyed B-99 Colossus 11918 | -1/Command | Spotted M Guard 11918 | -1/Command | Spotted M Guard 11918 | -1/Command | Spotted Combat Programmer 11919 | -1/Command | Spotted Combat Programmer 11943 | -1/Command | Destroyed Combat Programmer 11976 | -1/Command | Allies destroyed M Guard 11995 | -1/Command | Destroyed Combat Programmer 12060 | -1/Command | Destroyed M Guard 12060 | -1/Command | All MAIN.C guards destroyed 12089 | -1/Command | Met MAIN.C 12097 | -1/Command | System corruption reached 10% 12103 | -1/Command | 0b10 Conduit disabled 12569 | -1/Command | Core integrity fell below 20% 12644 | -1/Command | Destroyed by MAIN.C with Heavy Quantum Rifle Last Messages --------------- 12487_ MAIN.C suffers critical hit. 12487_ Slug penetrates MAIN.C. 12490_ Slug penetrates Wall. 12490_ Slug penetrates MAIN.C. 12500_ System corrupted: Substantial component data lost. 12517_ System corrupted: Component data lost. 12540_ H3EJVJOOBNB:6EQK>3 U>W0OMEB0BGM 12543_ MAIN.C suffers critical hit. 12558_ System corrupted: FCS attempts to trigger Enh. Quantum Rifle. 12558_ System corrupted: Enh. Quantum Rifle misfires. 12558_ Critical hit. 12576_ MAIN.C suffers critical hit. 12580_ System corrupted: Energy discharge (-236). 12599_ 8TC